fUSD/lending_fUSD_20241221
["ID","MTS","AMOUNT","RATE_DAILY","PERIOD"]
[346192496,1734769899763,-500.0,0.00021536,2]
[346192497,1734769899773,-500.0,0.00021536,2]
[346192498,1734769899784,-614.79,0.00021536,2]
[346192499,1734769899794,-563.80009621,0.00021536,2]
[346192500,1734769899804,-500.0,0.00021536,2]
[346192501,1734769899814,-500.0,0.00021536,2]
[346192502,1734769899825,-615.53,0.00021536,2]
[346192503,1734769899835,-500.0,0.00021536,2]
[346192504,1734769899844,-500.0,0.00021536,2]
[346192505,1734769899854,-500.0,0.00021536,2]
[346192506,1734769899864,-347.5385189,0.00021536,2]
[346192507,1734769899873,-500.0,0.00021536,2]
[346192508,1734769899883,-500.0,0.00021536,2]
[346192509,1734769899894,-500.0,0.00021536,2]
[346192510,1734769899904,-500.0,0.00021536,2]
[346192511,1734769899913,-596.19,0.00021536,2]
[346192512,1734769899923,-500.0,0.00021536,2]
[346192513,1734769899933,-500.0,0.00021536,2]
[346192514,1734769899943,-500.0,0.00021536,2]
[346192515,1734769899953,-500.0,0.00021536,2]
[346192516,1734769899965,-500.0,0.00021536,2]
[346192517,1734769899975,-500.0,0.00021536,2]
[346192518,1734769899985,-374.00649797,0.00021536,2]
[346192519,1734769899995,-615.88174792,0.00021536,2]
[346192520,1734769900005,-500.0,0.00021536,2]
[346192521,1734769900015,-500.0,0.00021536,2]
[346192522,1734769900024,-500.0,0.00021536,2]
[346192523,1734769900034,-500.0,0.00021536,2]
[346192524,1734769900044,-500.0,0.00021536,2]
[346192525,1734769900058,-560.41,0.00021536,2]
[346192526,1734769900068,-162.65908062,0.00021536,2]
[346192527,1734769900077,-500.0,0.00021536,2]
[346192528,1734769900086,-583.9,0.00021536,2]
[346192529,1734769900097,-500.0,0.00021536,2]
[346192530,1734769900107,-500.0,0.00021536,2]
[346192531,1734769900116,-500.0,0.00021536,2]
[346192532,1734769900127,-500.0,0.00021536,2]
[346192533,1734769900136,-500.0,0.00021536,2]
[346192534,1734769900145,-500.0,0.00021536,2]
[346192535,1734769900155,-500.0,0.00021536,2]
[346192536,1734769900164,-500.0,0.00021536,2]
[346192537,1734769900173,-500.0,0.00021536,2]
[346192538,1734769900183,-500.0,0.00021536,2]
[346192539,1734769900192,-997.17,0.00021536,2]
[346192540,1734769900202,-500.0,0.00021536,2]
[346192541,1734769900212,-500.0,0.00021536,2]
[346192542,1734769900222,-500.0,0.00021536,2]
[346192543,1734769900232,-685.72,0.00021536,2]
[346192544,1734769900243,-309.36335544,0.00021536,2]
[346192545,1734769900253,-500.0,0.00021536,2]
[346192546,1734769900262,-706.79,0.00021536,2]
[346192547,1734769900272,-500.0,0.00021536,2]
[346192548,1734769900282,-1349.74,0.00021536,2]
[346192549,1734769900291,-366.89571625,0.00021536,2]
[346192550,1734769900302,-1612.89,0.00021536,2]
[346192551,1734769900312,-2066.3,0.00021536,2]
[346192552,1734769900323,-500.0,0.00021536,2]
[346192553,1734769900332,-500.0,0.00021536,2]
[346192554,1734769900342,-500.0,0.00021536,2]
[346192555,1734769900352,-615.9,0.00021536,2]
[346192556,1734769900361,-1184.33,0.00021536,2]
[346192557,1734769900371,-500.0,0.00021536,2]
[346192558,1734769900380,-500.0,0.00021536,2]
[346192559,1734769900389,-2103.98,0.00021536,2]
[346192560,1734769900399,-1834.81,0.00021536,2]
[346192561,1734769900409,-4676.27,0.00021536,2]
[346192562,1734769900419,-500.0,0.00021536,2]
[346192563,1734769900428,-3208.63,0.00021536,2]
[346192564,1734769900438,-500.0,0.00021536,2]
[346192565,1734769900447,-500.0,0.00021536,2]
[346192566,1734769900457,-500.0,0.00021536,2]
[346192567,1734769900466,-421.12542633,0.00021536,2]
[346192568,1734769900475,-2622.64,0.00021536,2]
[346192569,1734769900485,-729.95,0.00021536,2]
[346192570,1734769900495,-1522.05,0.00021536,2]
[346192571,1734769900504,-500.0,0.00021536,2]
[346192572,1734769900514,-256.18795774,0.00021536,2]
[346192573,1734769900524,-500.0,0.00021536,2]
[346192574,1734769900534,-872.79,0.00021536,2]
[346192575,1734769900543,-554.69,0.00021536,2]
[346192576,1734769900552,-500.0,0.00021536,2]
[346192577,1734769900562,-1740.06,0.00021536,2]
[346192578,1734769900572,-8313.36,0.00021536,2]
[346192579,1734769900582,-500.0,0.00021536,2]
[346192580,1734769900592,-151.0,0.00021537,2]
[346192581,1734769900601,-151.0,0.00021537,2]
[346192582,1734769900611,-151.0,0.00021537,2]
[346192583,1734769900621,-223.317345,0.00021537,2]
[346192584,1734769900631,-223.317345,0.00021537,2]
[346192585,1734769900640,-807.11,0.00021537,2]
[346192586,1734769900650,-1622.3,0.00021537,2]
[346192587,1734769900659,-2408.36,0.00021537,2]
[346192588,1734769900668,-1853.05,0.00021537,2]
[346192589,1734769900678,-599.34,0.00021537,2]
[346192590,1734769900688,-1437.49,0.00021537,2]
[346192591,1734769900698,-2962.33,0.00021537,2]
[346192592,1734769900708,-1377.35,0.00021537,2]
[346192593,1734769900718,-4029.78,0.00021537,2]
[346192594,1734769900728,-1342.55,0.00021537,2]
[346192595,1734769900737,-151.0,0.00021537,2]
[346192596,1734769900747,-151.0,0.00021537,2]
[346192597,1734769900756,-151.0,0.00021537,2]
[346192598,1734769900766,-151.0,0.00021537,2]
[346192599,1734769900776,-152.265464,0.00021537,2]
[346192600,1734769900786,-150.0,0.00021551,2]
[346192601,1734769900796,-155.0,0.00021556,30]
[346192602,1734769900806,-1603.72218853,0.00021562,2]
[346192603,1734769900816,-317.5,0.00021568,15]
[346192604,1734769900826,-150.0,0.00021568,2]
[346192605,1734769900835,-150.0,0.00021586,2]
[346192606,1734769900844,-152.0,0.0002159,3]
[346192607,1734769900854,-150.0,0.00021593,4]
[346192608,1734769900864,-150.0,0.00021593,2]
[346192609,1734769900874,-150.0,0.000216,2]
[346192610,1734769900884,-600.0,0.000216,5]
[346192611,1734769900893,-605.95426174,0.000216,5]
[346192612,1734769900902,-150.0,0.00021605,2]
[346192613,1734769900913,-1079.48,0.00021628,2]
[346192614,1734769900925,-697.163733,0.00021636,2]
[346192615,1734769900934,-697.163733,0.00021636,2]
[346192616,1734769900944,-2359.453679,0.00021636,2]
[346192617,1734769900953,-151.0,0.00021636,2]
[346192618,1734769900962,-151.0,0.00021636,2]
[346192619,1734769900973,-151.0,0.00021636,2]
[346192620,1734769900982,-500.0,0.00021636,2]
[346192621,1734769900991,-896.14,0.00021636,2]
[346192622,1734769901001,-560.27,0.00021636,2]
[346192623,1734769901010,-518.18,0.00021636,2]
[346192624,1734769901019,-500.0,0.00021636,2]
[346192625,1734769901028,-748.73,0.00021636,2]
[346192626,1734769901037,-771.79,0.00021636,2]
[346192627,1734769901049,-500.0,0.00021636,2]
[346192628,1734769901061,-1095.4,0.00021636,2]
[346192629,1734769901071,-151.0,0.00021636,2]
[346192630,1734769901080,-500.0,0.00021636,2]
[346192631,1734769901090,-218.42064512,0.00021636,2]
[346192632,1734769901099,-1543.7,0.00021636,2]
[346192633,1734769901109,-684.8,0.00021636,2]
[346192634,1734769901118,-836.87,0.00021636,2]
[346192635,1734769901127,-500.0,0.00021636,2]
[346192636,1734769901136,-500.0,0.00021636,2]
[346192637,1734769901145,-151.0,0.00021636,2]
[346192638,1734769901154,-934.15,0.00021636,2]
[346192639,1734769901163,-500.0,0.00021636,2]
[346192640,1734769901172,-506.19,0.00021636,2]
[346192641,1734769901181,-719.72,0.00021636,2]
[346192642,1734769901190,-521.06,0.00021636,2]
[346192643,1734769901198,-832.43,0.00021636,2]
[346192644,1734769901207,-671.61,0.00021636,2]
[346192645,1734769901217,-653.84,0.00021636,2]
[346192646,1734769901225,-880.14,0.00021636,2]
[346192647,1734769901235,-1000.59,0.00021636,2]
[346192648,1734769901245,-1101.22,0.00021636,2]
[346192649,1734769901255,-657.85,0.00021636,2]
[346192650,1734769901264,-774.6,0.00021636,2]
[346192651,1734769901273,-954.05,0.00021636,2]
[346192652,1734769901282,-1138.7,0.00021636,2]
[346192653,1734769901292,-500.0,0.00021636,2]
[346192654,1734769901301,-929.19,0.00021636,2]
[346192655,1734769901310,-754.06,0.00021636,2]
[346192656,1734769901319,-500.0,0.00021636,2]
[346192657,1734769901328,-673.28,0.00021636,2]
[346192658,1734769901337,-581.25,0.00021636,2]
[346192659,1734769901348,-675.51,0.00021636,2]
[346192660,1734769901357,-1127.19,0.00021636,2]
[346192661,1734769901366,-500.0,0.00021636,2]
[346192662,1734769901375,-1260.74,0.00021636,2]
[346192663,1734769901386,-503.55,0.00021636,2]
[346192664,1734769901397,-546.544357,0.00021636,2]
[346192665,1734769901407,-546.544357,0.00021636,2]
[346192666,1734769901416,-1143.47,0.00021636,2]
[346192667,1734769901425,-151.0,0.00021636,2]
[346192668,1734769901435,-829.64,0.00021636,2]
[346192669,1734769901444,-8621.90081,0.00021636,2]
[346192670,1734769901453,-8621.90081,0.00021636,2]
[346192671,1734769901463,-500.0,0.00021636,2]
[346192672,1734769901472,-189.290281,0.00021636,2]
[346192673,1734769901481,-189.290281,0.00021636,2]
[346192674,1734769901490,-500.0,0.00021636,2]
[346192675,1734769901499,-766.03,0.00021636,2]
[346192676,1734769901509,-152.365062,0.00021636,2]
[346192677,1734769901518,-551.84,0.00021636,2]
[346192678,1734769901527,-152.365062,0.00021636,2]
[346192679,1734769901537,-500.0,0.00021636,2]
[346192680,1734769901546,-508.5,0.00021636,2]
[346192681,1734769901555,-749.47,0.00021636,2]
[346192682,1734769901565,-500.0,0.00021636,2]
[346192683,1734769901574,-1147.83,0.00021636,2]
[346192684,1734769901584,-959.63,0.00021636,2]
[346192685,1734769901593,-895.71,0.00021636,2]
[346192686,1734769901602,-869.86,0.00021636,2]
[346192687,1734769901611,-208.35921,0.00021636,2]
[346192688,1734769901620,-208.35921,0.00021636,2]
[346192689,1734769901630,-1036.93,0.00021636,2]
[346192690,1734769901640,-1138.3,0.00021636,2]
[346192691,1734769901650,-500.0,0.00021636,2]
[346192692,1734769901659,-500.0,0.00021636,2]
[346192693,1734769901669,-500.0,0.00021636,2]
[346192694,1734769901678,-1010.11,0.00021636,2]
[346192695,1734769901688,-717.94,0.00021636,2]
[346192696,1734769901698,-151.0,0.00021637,2]
[346192697,1734769901707,-151.0,0.00021637,2]
[346192698,1734769901717,-151.0,0.00021637,2]
[346192699,1734769901727,-1831.761634,0.00021637,2]
[346192700,1734769901736,-1291.001743,0.00021637,2]
[346192701,1734769901745,-1291.001743,0.00021637,2]
[346192702,1734769901754,-150.0,0.00021637,4]
[346192703,1734769901764,-150.0,0.00021637,4]
[346192704,1734769901774,-500.0,0.00021638,2]
[346192705,1734769901783,-500.0,0.00021638,2]
[346192706,1734769901793,-500.0,0.00021638,2]
[346192707,1734769901803,-500.0,0.00021638,2]
[346192708,1734769901813,-514.88413288,0.00021638,2]
[346192709,1734769901822,-500.0,0.00021638,2]
[346192710,1734769901832,-520.73,0.00021638,2]
[346192711,1734769901842,-500.0,0.00021638,2]
[346192712,1734769901851,-500.0,0.00021638,2]
[346192713,1734769901861,-500.0,0.00021638,2]
[346192714,1734769901870,-500.0,0.00021638,2]
[346192715,1734769901879,-500.0,0.00021638,2]
[346192716,1734769901890,-500.0,0.00021638,2]
[346192717,1734769901900,-815.52,0.00021638,2]
[346192718,1734769901909,-690.78,0.00021638,2]
[346192719,1734769901919,-500.0,0.00021638,2]
[346192720,1734769901929,-497.86679359,0.00021638,2]
[346192721,1734769901938,-500.0,0.00021638,2]
[346192722,1734769901947,-500.0,0.00021638,2]
[346192723,1734769901957,-500.0,0.00021638,2]
[346192724,1734769901967,-500.0,0.00021638,2]
[346192725,1734769901976,-500.0,0.00021638,2]
[346192726,1734769901985,-718.77,0.00021638,2]
[346192727,1734769901995,-500.0,0.00021638,2]
[346192728,1734769902141,-296.15747373,0.00021638,2]
[346192729,1734769902165,-632.48,0.00021638,2]
[346192730,1734769902175,-500.0,0.00021638,2]
[346192731,1734769902184,-500.0,0.00021638,2]
[346192732,1734769902194,-743.32,0.00021638,2]
[346192733,1734769902203,-549.62,0.00021638,2]
[346192734,1734769902211,-787.15,0.00021638,2]
[346192735,1734769902221,-1315.85,0.00021638,2]
[346192736,1734769902230,-260.46308666,0.00021638,2]
[346192737,1734769902240,-500.0,0.00021638,2]
[346192738,1734769902249,-500.0,0.00021638,2]
[346192739,1734769902258,-704.01,0.00021638,2]
[346192740,1734769902268,-500.0,0.00021638,2]
[346192741,1734769902277,-661.33,0.00021638,2]
[346192742,1734769902286,-526.74,0.00021638,2]
[346192743,1734769902297,-500.0,0.00021638,2]
[346192744,1734769902306,-842.34,0.00021638,2]
[346192745,1734769902316,-757.69,0.00021638,2]
[346192746,1734769902325,-500.0,0.00021638,2]
[346192747,1734769902335,-585.39,0.00021638,2]
[346192748,1734769902344,-500.0,0.00021638,2]
[346192749,1734769902354,-636.28,0.00021638,2]
[346192750,1734769902363,-890.26,0.00021638,2]
[346192751,1734769902372,-534.84,0.00021638,2]
[346192752,1734769902381,-500.0,0.00021638,2]
[346192753,1734769902391,-932.08,0.00021638,2]
[346192754,1734769902400,-1134.01,0.00021638,2]
[346192755,1734769902410,-600.68,0.00021638,2]
[346192756,1734769902419,-855.23,0.00021638,2]
[346192757,1734769902429,-1029.74,0.00021638,2]
[346192758,1734769902439,-500.0,0.00021638,2]
[346192759,1734769902449,-1143.08,0.00021638,2]
[346192760,1734769902458,-500.0,0.00021638,2]
[346192761,1734769902467,-162.562606,0.00021638,2]
[346192762,1734769902476,-1431.58,0.00021638,2]
[346192763,1734769902485,-162.562606,0.00021638,2]
[346192764,1734769902494,-1062.77,0.00021638,2]
[346192765,1734769902503,-955.25,0.00021638,2]
[346192766,1734769902513,-1134.38,0.00021638,2]
[346192767,1734769902522,-762.27,0.00021638,2]
[346192768,1734769902531,-759.77,0.00021638,2]
[346192769,1734769902541,-852.61,0.00021638,2]
[346192770,1734769902552,-818.84367,0.00021638,2]
[346192771,1734769902561,-818.84367,0.00021638,2]
[346192772,1734769902570,-1483.74,0.00021638,2]
[346192773,1734769902580,-666.82,0.00021638,2]
[346192774,1734769902589,-500.0,0.00021638,2]
[346192775,1734769902598,-926.1,0.00021638,2]
[346192776,1734769902607,-500.0,0.00021638,2]
[346192777,1734769902617,-617.66,0.00021638,2]
[346192778,1734769902626,-783.6,0.00021638,2]
[346192779,1734769902635,-500.0,0.00021638,2]
[346192780,1734769902645,-982.44,0.00021638,2]
[346192781,1734769902654,-1160.56,0.00021638,2]
[346192782,1734769902663,-500.0,0.00021638,2]
[346192783,1734769902674,-531.21,0.00021638,2]
[346192784,1734769902684,-150.0,0.00021639,2]
[346192785,1734769902693,-150.0,0.0002164,2]
[346192786,1734769902703,-2006.63,0.00021643,2]
[346192787,1734769902713,-500.0,0.00021643,2]
[346192788,1734769902722,-2236.16,0.00021643,2]
[346192789,1734769902732,-1041.22,0.00021643,2]
[346192790,1734769902741,-1756.06,0.00021643,2]
[346192791,1734769902753,-500.0,0.00021643,2]
[346192792,1734769902762,-3286.21,0.00021643,2]
[346192793,1734769902772,-3384.13,0.00021643,2]
[346192794,1734769902782,-3504.58,0.00021643,2]
[346192795,1734769902793,-1682.69,0.00021643,2]
[346192796,1734769902803,-502.95,0.00021643,2]
[346192797,1734769902813,-4268.95,0.00021643,2]
[346192798,1734769902824,-1837.3,0.00021643,2]
[346192799,1734769902833,-500.0,0.00021643,2]
[346192800,1734769902843,-1195.99,0.00021643,2]
[346192801,1734769902854,-1493.08,0.00021643,2]
[346192802,1734769902864,-2337.63,0.00021643,2]
[346192803,1734769902873,-30824.23,0.00021643,2]
[346192804,1734769902884,-1086.39,0.00021643,2]
[346192805,1734769902893,-500.0,0.00021643,2]
[346192806,1734769902902,-1126.87,0.00021643,2]
[346192807,1734769902912,-1124.1,0.00021643,2]
[346192808,1734769902922,-1271.09,0.00021643,2]
[346192809,1734769902931,-500.0,0.00021643,2]
[346192810,1734769902940,-615.26,0.00021643,2]
[346192811,1734769902950,-1603.72218853,0.00021644,2]
[346192812,1734769902960,-150.0,0.00021647,2]
[346192813,1734769902971,-500.0,0.00021664,2]
[346192814,1734769902981,-500.0,0.00021664,2]
[346192815,1734769902990,-500.0,0.00021664,2]
[346192816,1734769902999,-493.59435651,0.00021664,2]
[346192817,1734769903009,-670.15,0.00021665,2]
[346192818,1734769903019,-2498.82,0.00021665,2]
[346192819,1734769903029,-534.2,0.00021665,2]
[346192820,1734769903039,-1704.38,0.00021665,2]
[346192821,1734769903051,-989.16,0.00021665,2]
[346192822,1734769903062,-1850.446606,0.00021665,2]
[346192823,1734769903072,-1732.72,0.00021665,2]
[346192824,1734769903082,-500.0,0.00021665,2]
[346192825,1734769903092,-1409.43,0.00021665,2]
[346192826,1734769903103,-2295.414532,0.00021665,2]
[346192827,1734769903113,-2264.0,0.00021665,2]
[346192828,1734769903123,-788.06,0.00021665,2]
[346192829,1734769903135,-624.58,0.00021665,2]
[346192830,1734769903145,-2855.29,0.00021665,2]
[346192831,1734769903155,-1040.51,0.00021665,2]
[346192832,1734769903165,-500.0,0.00021665,2]
[346192833,1734769903175,-2075.7,0.00021665,2]
[346192834,1734769903186,-1269.52,0.00021665,2]
[346192835,1734769903197,-7720.01,0.00021665,2]
[346192836,1734769903209,-1581.9,0.00021665,2]
[346192837,1734769903218,-1508.43,0.00021665,2]
[346192838,1734769903228,-500.0,0.00021665,2]
[346192839,1734769903238,-1248.42,0.00021665,2]
[346192840,1734769903247,-4712.38,0.00021665,2]
[346192841,1734769903257,-7848.69,0.00021665,2]
[346192842,1734769903268,-2305.0,0.00021665,2]
[346192843,1734769903277,-500.0,0.00021665,2]
[346192844,1734769903287,-500.0,0.00021665,2]
[346192845,1734769903303,-500.0,0.00021665,2]
[346192846,1734769903322,-500.0,0.00021665,2]
[346192847,1734769903340,-8230.89,0.00021665,2]
[346192848,1734769903359,-1817.88,0.00021665,2]
[346192849,1734769903375,-1500.0,0.00021669,2]
[346192850,1734769903394,-150.0,0.00021674,4]
[346192851,1734769903414,-150.0,0.00021684,2]
[346192852,1734769903433,-1576.50671787,0.00021686,2]
[346192853,1734769903452,-600.0,0.00021698,6]
[346192854,1734769903469,-7231.29127318,0.000217,2]
[346192855,1734769903487,-900.0,0.0002171,2]
[346192856,1734769903503,-500.0,0.0002171,2]
[346192857,1734769903523,-150.0,0.00021712,2]
[346192858,1734769903536,-271.0,0.0002172,2]
[346192859,1734769903555,-210.0,0.0002172,2]
[346192860,1734769903569,-150.0,0.00021728,2]
[346192861,1734769903587,-1500.0,0.00021737,2]
[346192862,1734769903602,-150.0,0.00021743,2]
[346192863,1734769903617,-1603.72218853,0.00021753,2]
[346192864,1734769903633,-150.0,0.00021755,4]
[346192865,1734769903649,-500.0,0.00021759,2]
[346192866,1734769903665,-150.0,0.00021759,2]
[346192867,1734769903680,-150.0,0.00021764,2]
[346192868,1734769903696,-150.0,0.00021764,2]
[346192869,1734769903712,-150.0,0.00021764,2]
[346192870,1734769903728,-1006.76,0.00021765,2]
[346192871,1734769903744,-1107.72,0.00021765,2]
[346192872,1734769903761,-500.0,0.00021765,2]
[346192873,1734769903776,-500.0,0.00021765,2]
[346192874,1734769903792,-963.91,0.00021765,2]
[346192875,1734769903811,-452.3982924,0.00021765,2]
[346192876,1734769903827,-500.0,0.00021765,2]
[346192877,1734769903843,-899.8,0.00021765,2]
[346192878,1734769903859,-550.76,0.00021765,2]
[346192879,1734769903875,-786.66,0.00021765,2]
[346192880,1734769903892,-581.7,0.00021765,2]
[346192881,1734769903908,-531.56,0.00021765,2]
[346192882,1734769903924,-500.0,0.00021765,2]
[346192883,1734769903940,-500.0,0.00021765,2]
[346192884,1734769903956,-817.02,0.00021765,2]
[346192885,1734769903971,-986.87,0.00021765,2]
[346192886,1734769903987,-908.9,0.00021765,2]
[346192887,1734769904002,-1018.49,0.00021765,2]
[346192888,1734769904016,-1079.48,0.00021765,2]
[346192889,1734769904030,-500.0,0.00021765,2]
[346192890,1734769904046,-500.0,0.00021765,2]
[346192891,1734769904065,-1322.87,0.00021765,2]
[346192892,1734769904081,-500.0,0.00021765,2]
[346192893,1734769904096,-1111.98,0.00021765,2]
[346192894,1734769904111,-500.0,0.00021765,2]
[346192895,1734769904126,-1463.24,0.00021765,2]
[346192896,1734769904142,-1272.79,0.00021765,2]
[346192897,1734769904156,-653.5,0.00021765,2]
[346192898,1734769904171,-1142.97,0.00021765,2]
[346192899,1734769904186,-500.0,0.00021765,2]
[346192900,1734769904201,-1214.5,0.00021765,2]
[346192901,1734769904215,-693.93,0.00021765,2]
[346192902,1734769904230,-500.0,0.00021765,2]
[346192903,1734769904245,-500.0,0.00021765,2]
[346192904,1734769904259,-500.0,0.00021765,2]
[346192905,1734769904275,-500.0,0.00021765,2]
[346192906,1734769904288,-535.74,0.00021765,2]
[346192907,1734769904304,-866.47,0.00021765,2]
[346192908,1734769904319,-500.0,0.00021765,2]
[346192909,1734769904334,-1062.63,0.00021765,2]
[346192910,1734769904349,-771.8,0.00021765,2]
[346192911,1734769904364,-500.0,0.00021765,2]
[346192912,1734769904379,-500.0,0.00021765,2]
[346192913,1734769904393,-594.86,0.00021765,2]
[346192914,1734769904408,-1067.07,0.00021765,2]
[346192915,1734769904423,-229.39243785,0.00021765,2]
[346192916,1734769904437,-521.59,0.00021765,2]
[346192917,1734769904452,-500.0,0.00021765,2]
[346192918,1734769904467,-1968.56,0.00021765,2]
[346192919,1734769904482,-897.44,0.00021765,2]
[346192920,1734769904498,-1678.37,0.00021765,2]
[346192921,1734769904513,-743.27,0.00021765,2]
[346192922,1734769904528,-1115.72,0.00021765,2]
[346192923,1734769904543,-1183.83,0.00021765,2]
[346192924,1734769904560,-637.53,0.00021765,2]
[346192925,1734769904574,-488.42,0.00021765,2]
[346192926,1734769904591,-694.28,0.00021765,2]
[346192927,1734769904605,-1132.35,0.00021765,2]
[346192928,1734769904619,-720.98,0.00021765,2]
[346192929,1734769904634,-754.31,0.00021765,2]
[346192930,1734769904649,-1056.77,0.00021765,2]
[346192931,1734769904667,-1699.2,0.00021765,2]
[346192932,1734769904681,-958.54,0.00021765,2]
[346192933,1734769904695,-725.66,0.00021765,2]
[346192934,1734769904709,-1303.37,0.00021765,2]
[346192935,1734769904724,-1519.2,0.00021765,2]
[346192936,1734769904740,-1616.36,0.00021765,2]
[346192937,1734769904755,-1428.2,0.00021765,2]
[346192938,1734769904771,-601.26,0.00021765,2]
[346192939,1734769904787,-854.19,0.00021765,2]
[346192940,1734769904805,-500.0,0.00021765,2]
[346192941,1734769904820,-514.03,0.00021765,2]
[346192942,1734769904834,-1403.09,0.00021765,2]
[346192943,1734769904850,-1542.93,0.00021765,2]
[346192944,1734769904865,-709.92,0.00021765,2]
[346192945,1734769904881,-1934.91,0.00021765,2]
[346192946,1734769904896,-742.36,0.00021765,2]
[346192947,1734769904912,-2451.17,0.00021765,2]
[346192948,1734769904927,-500.0,0.00021765,2]
[346192949,1734769904941,-500.0,0.00021765,2]
[346192950,1734769904957,-825.21,0.00021765,2]
[346192951,1734769904971,-1111.89,0.00021765,2]
[346192952,1734769904987,-1379.34,0.00021765,2]
[346192953,1734769905002,-500.0,0.00021765,2]
[346192954,1734769905017,-4072.68,0.00021765,2]
[346192955,1734769905032,-1131.46,0.00021765,2]
[346192956,1734769905049,-4144.12,0.00021765,2]
[346192957,1734769905067,-150.0,0.00021771,2]
[346192958,1734769905082,-150.0,0.00021774,2]
[346192959,1734769905318,-150.0,0.0002178,2]
[346192960,1734769905328,-150.0,0.00021787,2]
[346192961,1734769905338,-400.0,0.000218,7]
[346192962,1734769905349,-205088.78853627,0.000218,2]
[346192963,1734769905358,-151.0,0.000218,2]
[346192964,1734769905368,-151.305028,0.000218,2]
[346192965,1734769905377,-151.0,0.000218,2]
[346192966,1734769905387,-150.0,0.00021801,2]
[346192967,1734769905397,-300.0,0.00021808,2]
[346192968,1734769905406,-3503.71,0.00021809,2]
[346192969,1734769905415,-1024.59,0.00021809,2]
[346192970,1734769905425,-3237.21,0.00021809,2]
[346192971,1734769905435,-500.0,0.00021809,2]
[346192972,1734769905445,-1586.97,0.00021809,2]
[346192973,1734769905454,-245.95591133,0.0002181,2]
[346192974,1734769905465,-500.0,0.0002181,2]
[346192975,1734769905475,-500.0,0.0002181,2]
[346192976,1734769905486,-500.0,0.0002181,2]
[346192977,1734769905495,-500.0,0.0002181,2]
[346192978,1734769905506,-500.0,0.0002181,2]
[346192979,1734769905516,-557.57254026,0.0002181,2]
[346192980,1734769905525,-500.0,0.0002181,2]
[346192981,1734769905534,-500.0,0.0002181,2]
[346192982,1734769905544,-555.27,0.0002181,2]
[346192983,1734769905555,-506.7327713,0.0002181,2]
[346192984,1734769905564,-500.0,0.0002181,2]
[346192985,1734769905573,-500.0,0.0002181,2]
[346192986,1734769905582,-500.0,0.0002181,2]
[346192987,1734769905591,-500.0,0.0002181,2]
[346192988,1734769905601,-500.0,0.0002181,2]
[346192989,1734769905611,-500.0,0.0002181,2]
[346192990,1734769905621,-500.0,0.0002181,2]
[346192991,1734769905631,-614.79,0.0002181,2]
[346192992,1734769905641,-500.0,0.0002181,2]
[346192993,1734769905651,-500.0,0.0002181,2]
[346192994,1734769905660,-615.53,0.0002181,2]
[346192995,1734769905670,-631.75091371,0.0002181,2]